Workbook

Sheet Sheet1 (2)
E1: Reports | F1: Total Annual | G1: Est. No. of | H1: Est. Total | I1: Wage | J1: Cost to the
A2: Section of | C2: Form No. | D2: Est. No. of | E2: Filed | F2: Responses | G2: Man hours | H2: Man-hours | I2: Class (per | J2: Public
A3: Regulation | B3: Title | C3: (if Any) | D3: Respondents | E3: Annually | F3: (D) x (E) | G3: Per Response | H3: (F) x (G) | I3: hour) | J3: (H) x (I)
A5: (A) | B5: (B) | C5: (C) | D5: (D) | E5: (E) | F5: (F) | G5: (G) | H5: (H) | I5: (I) | J5: (J)
A6: NONE
B8: REPORTING REQUIREMENTS - NON FORMS
A9: 4274.314(b)(14)(iv) - 100% of respondents are not-for-profit | B9: Operating plans for revolving line of credit | C9: written | D9: 56 | E9: 1 | F9: =(D9)*(E9) -> 56 | G9: 5 | H9: =(F9)*(G9) -> 280 | I9: 83 | J9: =(H9)*(I9) -> 23,240
F10: =(D10)*(E10) -> 0 | H10: =(F10)*(G10) -> 0 | I10: 73 | J10: 0
A11: 4274.326(a)(2) - 100% of respondents are not-for-profit | B11: Assignments of Security | C11: Written | D11: 5 | E11: 1 | F11: 5 | G11: 1.5 | H11: 8.0 | I11: 83 | J11: 664
B12: Activities | F12: =(#REF!)*(#REF!) ->  | H12: =(F6)*(G12) -> 0 | I12: 83 | J12: 0
A13: 4274.332(b)(4) - 100% of respondents are not-for-profit | B13: Jusitification for amount of reserve | C13: Written | D13: 15 | E13: 1 | F13: 15 | G13: 2 | H13: =(F13)*(G13) -> 30 | I13: 83 | J13: 2,490
A14: 4274.337(a) - 100% of respondents are not-for-profit | B14: Intergovernmental review comments | C14: written | D14: 192 | E14: 1 | F14: 192 | G14: 2 | H14: =(F14)*(G14) -> 384 | I14: 83 | J14: 31,872
F15: =(D15)*(E15) -> 0 | H15: 0 | I15: 83 | J15: 0
A16: 4274.338(a)(5) - 100% of respondents are not-for-profit | B16: Request for advance of funds | C16: written or Form RD 440-11 (0575-0015) | D16: 192 | E16: 1 | F16: 192 | G16: 1 | H16: =(F16)*(G16) -> 192 | I16: 83 | J16: =(H16)*(I16) -> 15,936
A17: 4274.338(a)(7)(v)(c) - 100% of respondents are not-for-profit | B17: Evidence of fidelity bond coverage | C17: written | D17: 192 | E17: 1 | F17: =(D17)*(E17) -> 192 | G17: 1.5 | H17: =(F17)*(G17) -> 288 | I17: 83 | J17: =(H17)*(I17) -> 23,904
A18: 4274.343(a)(2) - 100% of respondents are not-for-profit | B18: Workplan | C18: written | D18: 192 | E18: 1 | F18: =(D18)*(E18) -> 192 | G18: 18 | H18: =(F18)*(G18) -> 3456 | I18: 83 | J18: =(H18)*(I18) -> 286,848
A19: 4274.343(a)(9) - 100% of respondents are not-for-profit | B19: Certification of lack of financing | C19: written | D19: 192 | E19: 1 | F19: =(D19)*(E19) -> 192 | G19: 1.5 | H19: =(F19)*(G19) -> 288 | I19: 83 | J19: =(H19)*(I19) -> 23,904
A20: 4274.344(c)(2)(ii) - 100% of respondents are not-for-profit | B20: Low-income counties | C20: written | D20: 37 | E20: 1 | F20: 37 | G20: 2 | H20: 74 | I20: 83 | J20: 6,142
A21: 4274.344(c)(2)(iv) - 100% of respondents are business or other for-profit | B21: Ultimate recipients certification of low-income work force | C21: written | D21: 185 | E21: 1 | F21: 185 | G21: 0.5 | H21: 93 | I21: 83 | J21: 7,719
A22: 4274.350 - 100% of respondents are not-for-profit | B22: Letter of Conditions | C22: Form RD 1942-46 (0575-0015) | D22: 192 | E22: 1 | F22: 192 | G22: 1 | H22: 192 | I22: 83 | J22: 15,936
F23: 0 | H23: 0 | I23: 83 | J23: 0
A24: 4274.356 - 100% of respondents are not-for-profit | B24: Loan Closing Certifications | C24: written | D24: 192 | E24: 1 | F24: 192 | G24: 1 | H24: 192 | I24: 83 | J24: 15,936
A25: 4274.361(b)(1) - 100% of respondents are not-for-profit | B25: Certifications to make loans to ultimate recipients | C25: written | D25: 192 | E25: 1 | F25: 192 | G25: 1.5 | H25: 288 | I25: 83 | J25: 23,904
A26: 4274.373 - 100% of respondents are not-for-profit | B26: Request for Appeal | C26: written | D26: 5 | E26: 1 | F26: 5 | G26: 2 | H26: 10 | I26: 83 | J26: 830
B28: FORMS APPROVED WITH THIS DOCKET
F30: =(D30)*(E30) -> 0 | H30: =(F30)*(G30) -> 0 | J30: =(H30)*(I30) -> 0
F31: 0 | H31: 0 | J31: 0
F32: 0 | H32: 0 | J32: 0
F34: 0 | H34: 0 | J34: 0
B35: Ineligibility & Vol. Excl. | F35: 0 | H35: 0 | J35: 0
B36: Lower Tier Cov. Trans. | F36: 0 | H36: 0 | J36: 0
A37: 4274.338 - 100% of respondents are not-for-profit | B37: Loan Agreement | C37: 4274-4 | D37: 100 | E37: 1 | F37: 100 | G37: 1.5 | H37: 150 | I37: 83 | J37: 12,450
F38: 0 | H38: 0 | I38: 83 | J38: 0
A39: 4274.338 - 100% of respondents are not-for-profit | B39: Supplemental Loan Agreement | C39: 4274-5 | D39: 50 | E39: 1 | F39: 50 | G39: 1 | H39: 50 | I39: 83 | J39: 4,150
F40: 0 | H40: 0 | I40: 83 | J40: 0
D41: 100 | E41: 1 | F41: 100 | G41: 0.25 | H41: 25 | I41: 83 | J41: 2,075
A42: 4274.338(b)(9) - 100% of respondents are not-for-profit | B42: Promissory Note | C42: 4274-3 | D42: 192 | E42: 1 | F42: 192 | G42: 1.5 | H42: 288 | I42: 83 | J42: 23,904
F43: 0 | H43: 0 | I43: 83 | J43: 0
A44: 4274.343(a)(1) - 100% of respondents are not-for-profit | B44: Application for Loan (IRP) | C44: 4274-1 | D44: 202 | E44: 1 | F44: 202 | G44: 56 | H44: 11,312 | I44: 83 | J44: 938,896
B46: Totals | D46: 202 | F46: 2,383 | H46: 17,959 | J46: 1,490,597
B49: REPORTING REQUIREMENTS APPROVED UNDER OTHER NUMBERS
F51: 0 | H51: 0 | J51: 0
A52: Grantee Requirements | B52: Req. for Obligation of Funds | C52: RD 1940-1 | D52: 20 | E52: 1 | F52: 20 | G52: 0.25 | H52: 5 | I52: 26 | J52: 130
A53: 4274.337(B) | B53: Request for Environmental Information | C53: 1940-20 (0575-0094) | D53: 192 | E53: 1 | F53: 192 | G53: 6 | H53: 1,152 | I53: 83 | J53: 95,616
A54: 4274.338(b)(4)(ii)(C) | B54: Report of IRP/RDLF | C54: 1951-4 (0570-0015) | D54: 192 | E54: 1 | F54: 192 | G54: 4 | H54: 768 | I54: 83 | J54: 63,744
A55: 4274.343(a)(7) | B55: Assurance Agreement | C55: 400-4 (0575-0018) | D55: 192 | E55: 1 | F55: 192 | G55: 0.25 | H55: 48 | I55: 83 | J55: 3,984
A56: 4274.326(a)(3) | B56: Deposit Agreement | C56: 402-1 (0575-0158) | D56: 192 | E56: 1 | F56: 192 | G56: 0.08 | H56: 15 | I56: 83 | J56: 1,245
F57: 0 | H57: 0 | J57: 0
F58: 0 | H58: 0 | J58: 0
A59: 4274.337(c)(4) | B59: Compliance Review | C59: 400-8 (0575-0018) | D59: 192 | E59: 1 | F59: 192 | G59: 8 | H59: 1536 | I59: 83 | J59: 127,488

Sheet Sheet1
E1: Reports | F1: Total Annual | G1: Est. No. of | H1: Est. Total | I1: Wage | J1: Cost to the
A2: Section of | C2: Form No. | D2: Est. No. of | E2: Filed | F2: Responses | G2: Man hours | H2: Man-hours | I2: Class (per | J2: Public
A3: Regulation | B3: Title | C3: (if Any) | D3: Respondents | E3: Annually | F3: (D) x (E) | G3: Per Response | H3: (F) x (G) | I3: hour) | J3: (H) x (I)
A5: (A) | B5: (B) | C5: (C) | D5: (D) | E5: (E) | F5: (F) | G5: (G) | H5: (H) | I5: (I) | J5: (J)
A6: NONE
B8: REPORTING REQUIREMENTS - NON FORMS
A9: 4274.314(b)(14)(iv) - 100% of respondents are not-for-profit | B9: Operating plans for revolving line of credit | C9: written | D9: 56 | E9: 1 | F9: =(D9)*(E9) -> 56 | G9: 5 | H9: =(F9)*(G9) -> 280 | I9: 83 | J9: =(H9)*(I9) -> 23,240
F10: =(D10)*(E10) -> 0 | H10: =(F10)*(G10) -> 0 | I10: 73 | J10: 0
A11: 4274.326(a)(2) - 100% of respondents are not-for-profit | B11: Assignments of Security | C11: Written | D11: 5 | E11: 1 | F11: =(D11)*(E11) -> 5 | G11: 1.5 | H11: =(F11)*(G11) -> 8 | I11: 83 | J11: 623
B12: Activities | F12: =(#REF!)*(#REF!) ->  | H12: =(F6)*(G12) -> 0 | I12: 83 | J12: 0
A13: 4274.332(b)(4) - 100% of respondents are not-for-profit | B13: Jusitification for amount of reserve | C13: Written | D13: 15 | E13: 1 | F13: 15 | G13: 2 | H13: =(F13)*(G13) -> 30 | I13: 83 | J13: 2,490
A14: 4274.337(a) - 100% of respondents are not-for-profit | B14: Intergovernmental review comments | C14: written | D14: 192 | E14: 1 | F14: 192 | G14: 2 | H14: =(F14)*(G14) -> 384 | I14: 83 | J14: 31,872
F15: 0 | H15: 0 | I15: 83 | J15: 0
A16: 4274.338(a)(5) - 100% of respondents are not-for-profit | B16: Request for advance of funds | C16: written or Form RD 440-11 (0575-0015) | D16: 192 | E16: 1 | F16: 192 | G16: 1 | H16: =(F16)*(G16) -> 192 | I16: 83 | J16: =(H16)*(I16) -> 15,936
A17: 4274.338(a)(7)(v)(c) - 100% of respondents are not-for-profit | B17: Evidence of fidelity bond coverage | C17: written | D17: 192 | E17: 1 | F17: =(D17)*(E17) -> 192 | G17: 1.5 | H17: =(F17)*(G17) -> 288 | I17: 83 | J17: =(H17)*(I17) -> 23,904
A18: 4274.343(a)(2) - 100% of respondents are not-for-profit | B18: Workplan | C18: written | D18: 192 | E18: 1 | F18: =(D18)*(E18) -> 192 | G18: 18 | H18: =(F18)*(G18) -> 3456 | I18: 83 | J18: =(H18)*(I18) -> 286,848
A19: 4274.343(a)(9) - 100% of respondents are not-for-profit | B19: Certification of lack of financing | C19: written | D19: 192 | E19: 1 | F19: =(D19)*(E19) -> 192 | G19: 1.5 | H19: =(F19)*(G19) -> 288 | I19: 83 | J19: =(H19)*(I19) -> 23,904
A20: 4274.344(c)(2)(ii) - 100% of respondents are not-for-profit | B20: Low-income counties | C20: written | D20: 37 | E20: 1 | F20: 37 | G20: 2 | H20: 74 | I20: 83 | J20: 6,142
A21: 4274.344(c)(2)(iv) - 100% of respondents are business or other for-profit | B21: Ultimate recipients certification of low-income work force | C21: written | D21: 185 | E21: 1 | F21: 185 | G21: 0.5 | H21: 93 | I21: 83 | J21: 7,678
A22: 4274.350 - 100% of respondents are not-for-profit | B22: Letter of Conditions | C22: Form RD 1942-46 (0575-0015) | D22: 192 | E22: 1 | F22: 192 | G22: 1 | H22: 192 | I22: 83 | J22: 15,936
F23: 0 | H23: 0 | I23: 83 | J23: 0
A24: 4274.356 - 100% of respondents are not-for-profit | B24: Loan Closing Certifications | C24: written | D24: 192 | E24: 1 | F24: 192 | G24: 1 | H24: 192 | I24: 83 | J24: 15,936
A25: 4274.361(b)(1) - 100% of respondents are not-for-profit | B25: Certifications to make loans to ultimate recipients | C25: written | D25: 192 | E25: 1 | F25: 192 | G25: 1.5 | H25: 288 | I25: 83 | J25: 23,904
A26: 4274.373 - 100% of respondents are not-for-profit | B26: Request for Appeal | C26: written | D26: 5 | E26: 1 | F26: 5 | G26: 2 | H26: 10 | I26: 83 | J26: 830
B28: FORMS APPROVED WITH THIS DOCKET
F30: =(D30)*(E30) -> 0 | H30: =(F30)*(G30) -> 0 | J30: =(H30)*(I30) -> 0
F31: 0 | H31: 0 | J31: 0
F32: 0 | H32: 0 | J32: 0
F34: 0 | H34: 0 | J34: 0
B35: Ineligibility & Vol. Excl. | F35: 0 | H35: 0 | J35: 0
B36: Lower Tier Cov. Trans. | F36: 0 | H36: 0 | J36: 0
A37: 4274.338 - 100% of respondents are not-for-profit | B37: Loan Agreement | C37: 4274-4 | D37: 100 | E37: 1 | F37: 100 | G37: 1.5 | H37: 150 | I37: 83 | J37: 12,450
F38: 0 | H38: 0 | I38: 83 | J38: 0
A39: 4274.338 - 100% of respondents are not-for-profit | B39: Supplemental Loan Agreement | C39: 4274-5 | D39: 50 | E39: 1 | F39: 50 | G39: 1 | H39: 50 | I39: 83 | J39: 4,150
F40: 0 | H40: 0 | I40: 83 | J40: 0
D41: 100 | E41: 1 | F41: 100 | G41: 0.25 | H41: 25 | I41: 83 | J41: 2,075
A42: 4274.338(b)(9) - 100% of respondents are not-for-profit | B42: Promissory Note | C42: 4274-3 | D42: 192 | E42: 1 | F42: 192 | G42: 1.5 | H42: 288 | I42: 83 | J42: 23,904
F43: 0 | H43: 0 | I43: 83 | J43: 0
A44: 4274.343(a)(1) - 100% of respondents are not-for-profit | B44: Application for Loan (IRP) | C44: 4274-1 | D44: 202 | E44: 1 | F44: 202 | G44: 56 | H44: 11,312 | I44: 83 | J44: 938,896
B46: Totals | D46: 202 | F46: 2,383 | H46: =SUM(H9:H44) -> 17,599 | J46: =SUM(J9:J44) -> 1,460,717
B49: REPORTING REQUIREMENTS APPROVED UNDER OTHER NUMBERS
F51: 0 | H51: 0 | J51: 0
A52: Grantee Requirements | B52: Req. for Obligation of Funds | C52: RD 1940-1 | D52: 20 | E52: 1 | F52: 20 | G52: 0.25 | H52: 5 | I52: 26 | J52: 130
A53: 4274.337(B) | B53: Request for Environmental Information | C53: 1940-20 (0575-0094) | D53: 192 | E53: 1 | F53: 192 | G53: 6 | H53: 1,152 | I53: 83 | J53: 95,616
A54: 4274.338(b)(4)(ii)(C) | B54: Report of IRP/RDLF | C54: 1951-4 (0570-0015) | D54: 192 | E54: 1 | F54: 192 | G54: 4 | H54: 768 | I54: 83 | J54: 63,744
A55: 4274.343(a)(7) | B55: Assurance Agreement | C55: 400-4 (0575-0018) | D55: 192 | E55: 1 | F55: 192 | G55: 0.25 | H55: 48 | I55: 83 | J55: 3,984
A56: 4274.326(a)(3) | B56: Deposit Agreement | C56: 402-1 (0575-0158) | D56: 192 | E56: 1 | F56: 192 | G56: 0.08 | H56: 15 | I56: 83 | J56: 1,245
F57: 0 | H57: 0 | J57: 0
F58: 0 | H58: 0 | J58: 0
A59: 4274.337(c)(4) | B59: Compliance Review | C59: 400-8 (0575-0018) | D59: 192 | E59: 1 | F59: 192 | G59: 8 | H59: 1536 | I59: 83 | J59: 127,488
